[Event "NY Presidents Day IM-B 2024"]
[Site "New York"]
[Date "2024.02.17"]
[Round "3.2"]
[White "Rajesh, C.S."]
[Black "Tanenbaum, Zachary"]
[Result "1-0"]
[ECO "A29"]
[WhiteElo "2218"]
[BlackElo "2272"]
[Annotator "TA"]
[PlyCount "115"]
[EventDate "2024.02.14"]
[EventType "schev"]
[EventCountry "USA"]
[SourceTitle "playchess.com"]
[Source "ChessBase"]
[SourceQuality "1"]
[TimeControl "5400+30"]

{[%evp 12,114,14,-8,36,31,37,30,216,200,201,204,257,246,253,245,242,246,257,263,246,221,237,225,214,218,211,170,162,154,143,144,143,131,161,150,125,133,152,149,221,226,237,250,241,246,241,242,237,243,248,256,317,197,199,216,206,199,309,313,318,303,376,393,360,0,552,548,530,421,421,407,350,224,734,540,1481,1609,1635,1497,29982,29980,29977,435,1517,747,1633,772,1319,1020,1147,625,29967,1274,29987,29988,29988,29989,29991,29992,29993,29993,29996,29997,29999]} 1. c4 {[%emt 0:00:01]} e5 {[%emt 0:24:46]} 2. Nc3 {[%emt 0:00:16]} Nf6 {[%emt 0:00:11]} 3. Nf3 {[%emt 0:00:49]} Nc6 {[%emt 0:00:07]} 4. g3 {[%emt 0:00:02]} Bb4 {[%emt 0:06:13]} 5. Bg2 {[%emt 0:01:09]} d6 {[%emt 0:00:40]} 6. O-O {[%emt 0:03:04]} O-O {[%emt 0:01:20]} 7. Nd5 {[%emt 0:06:57]} Nxd5 {[%emt 0:08:14]} 8. cxd5 {[%emt 0:00:02]} Ne7 {[%emt 0:00:59]} 9. d4 {[%emt 0:08:37]} Ng6 $2 {[%emt 0:08:01] [#]} (9... e4 $11 {und Schwarz ist OK.} 10. Nh4 Ba5) 10. Qa4 $1 $18 {[%emt 0:01:54]} c5 {[%emt 0:05:32]} 11. dxc6 {[%emt 0:00:28]} Ba5 {[%emt 0:07:19]} 12. dxe5 {[%emt 0:02:02]} dxe5 {[%emt 0:04:21] [#]} 13. Nxe5 {[%emt 0:03:42][%mdl 512]} Nxe5 {[%emt 0:05:18]} 14. cxb7 {[%emt 0:00:15]} Bxb7 {[%emt 0:00:29]} 15. Bxb7 {[%emt 0:00:04]} Rb8 {[%emt 0:00:14]} 16. Bg2 {[%emt 0:06:48]} Bb6 {[%emt 0:03:57]} 17. Bf4 {[%emt 0:04:29]} Qf6 {[%emt 0:03:37]} 18. Rac1 {[%emt 0:06:13][%cal Ba1c1,Bc1c4,Bc4b4,Bb4b5][%mdl 32]} Rbd8 {[%emt 0:02:48]} 19. Bxe5 {[%emt 0:04:43]} Qxe5 {[%emt 0:00:07]} 20. Qc2 {[%emt 0:00:49]} Qa5 {[%emt 0:02:58]} 21. Qb3 {[%emt 0:04:01]} Rd2 {[%emt 0:01:56]} 22. e3 {[%emt 0:02:18]} Qf5 {[%emt 0:01:00]} 23. Rc4 {[%emt 0:06:46]} Qe6 {[%emt 0:02:33]} 24. Rb4 {[%emt 0:02:19]} Qf6 {[%emt 0:02:38]} 25. Bd5 {[%emt 0:02:53]} Qd6 {[%emt 0:03:45] [#]} (25... g6 $16 26. Rf4 Qxb2 27. Rxf7 (27. Bxf7+ Kg7 $18) 27... Rxf7) 26. Rb5 $1 {[%emt 0:02:17]} Qf6 {[%emt 0:00:25]} 27. Qb4 {[%emt 0:04:15]} Rc2 {[%emt 0:02:10]} 28. Be4 {[%emt 0:00:47]} Rcc8 {[%emt 0:01:09]} 29. a4 {[%emt 0:01:29][%cal Ba2a4,Ba4a5][%mdl 32]} g6 {[%emt 0:00:49]} 30. a5 {[%emt 0:00:16]} Bc7 {[%emt 0:00:53]} 31. Rd1 {[%emt 0:02:48]} Rb8 {[%emt 0:00:38]} 32. b3 {[%emt 0:02:34]} Rxb5 {[%emt 0:00:47]} 33. Qxb5 {[%emt 0:00:08]} Qc3 {[%emt 0:00:23]} 34. Rd7 {[%emt 0:00:47] Und Bd5 würde nun gewinnen.} Bxa5 {[%emt 0:00:34] Schwarz ist schwach auf den weissen Feldern} (34... a6 $142 35. Qa4 (35. Qxa6 Rd8 $18) 35... Qxa5) 35. Rxa7 {[%emt 0:00:22]} Bd8 {[%emt 0:00:36][%cal Ba5d8,Bd8c7,Bc7b6][%mdl 32]} 36. Bd5 {[%emt 0:00:31][%cal Oa7f7] Schwarz muss nun Rxf7! beachten.} Bc7 {[%emt 0:00:30]} 37. Qd7 {[%emt 0:01:17]} Bb6 {[%emt 0:00:29]} 38. Ra8 {[%emt 0:03:23]} ({Vorzuziehen ist} 38. Bxf7+ $18 Kh8 39. Qe7) 38... Qf6 $2 {[%emt 0:00:32][%mdl 8192] [#]} (38... Rxa8 $11 {und Schwarz muss sich keine Sorgen machen.} 39. Qxf7+ Kh8 40. Bxa8 Qa1+ 41. Kg2 Qxa8+ 42. Kg1 Qa1+ 43. Kg2 Qa8+ 44. Kg1 Qd8) 39. Bxf7+ $1 {[%emt 0:01:32][%mdl 512]} Kg7 {[%emt 0:01:02][%cal Of8f7]} 40. Bd5+ {[%emt 0:02:56]} Kh6 {[%emt 0:00:00]} 41. Rxf8 {[%emt 0:00:36]} Qxf8 {[%emt 0:00:00][%mdl 4096] Endspiel. KQB-KQB} 42. Qf7 {[%emt 0:01:13]} Qc5 {[%emt 0:00:49]} (42... Qxf7 43. Bxf7 Kg7) 43. Kg2 {[%emt 0:01:03]} Bc7 {[%emt 0:00:36] [#] Es drohte Qf4+} 44. b4 $1 {[%emt 0:00:47]} Qd6 {[%emt 0:00:31]} 45. b5 {[%emt 0:00:35] f4 ist eine echte Drohung.} Bb6 {[%emt 0:00:32]} 46. h4 {[%emt 0:00:43]} Bd8 {[%emt 0:00:29]} 47. Qe6 {[%emt 0:02:04]} (47. g4 $142 Qb4 48. g5+ Bxg5 49. hxg5+ Kxg5 50. Qf4+ (50. Qxh7 Qg4+ 51. Kh2 Kf6 $18) 50... Qxf4 51. exf4+ Kxf4 52. b6) 47... Qb4 {[%emt 0:00:29]} (47... Qxe6 $142 48. Bxe6 Kg7) 48. Qd7 {[%emt 0:00:22]} Bf6 {[%emt 0:00:30]} 49. Bc6 {[%emt 0:02:01]} Qc5 {[%emt 0:00:28]} 50. Qd5 {[%emt 0:00:34]} Qb4 {[%emt 0:00:24]} 51. Qe4 {[%emt 0:00:42]} Qb2 {[%emt 0:00:23]} 52. Qe6 {[%emt 0:00:28]} (52. Qf4+ $142 g5 53. Qc7 (53. hxg5+ Bxg5 54. Qc7 Qa3 $18) 53... Qe5 54. hxg5+ Qxg5 55. Be4 Be7 56. b6 Qc5 57. Qf4+ Kg7 58. b7) 52... Kg7 {[%emt 0:00:33]} 53. Bd5 {[%emt 0:00:22] Weiß setzt Matt.} Kh6 {[%emt 0:00:43]} 54. b6 {[%emt 0:00:04][%cal Bb5b6,Bb6b7][%mdl 32]} Bc3 {[%emt 0:00:31]} 55. b7 {[%emt 0:00:16]} Be5 {[%emt 0:00:28]} 56. g4 {[%emt 0:00:37][%cal Bg3g4,Bg4g5][%mdl 32]} Kg7 {[%emt 0:00:31]} 57. g5 {[%emt 0:00:14][%csl Gd5][%cal Re6g8]} Qe2 {[%emt 0:00:30]} 58. Qg8# {[%emt 0:00:16] Gewichteter Fehlerwert: Weiß=0.31/Schwarz=0.52.  Verlustzug:     	---       	Schwarz=2     Gewinn verpasst:   	Weiß=1     	---        Fehler:       	---       	Schwarz=3     Ungenau:       	Weiß=2     	Schwarz=2     OK:         	Weiß=18    	Schwarz=10    Bester:       	---       	Schwarz=1     Stark:        	Weiß=1     	---        Brilliant:      	Weiß=1     	---} 1-0

[Event "NY Presidents Day IM-B 2024"]
[Site "New York"]
[Date "2024.02.17"]
[Round "3.3"]
[White "Pang, Qi"]
[Black "Sun, Ryan"]
[Result "1/2-1/2"]
[ECO "A17"]
[WhiteElo "2148"]
[BlackElo "2217"]
[Annotator "RC"]
[PlyCount "128"]
[EventDate "2024.02.14"]
[EventType "schev"]
[EventCountry "USA"]
[SourceTitle "playchess.com"]
[Source "ChessBase"]
[SourceQuality "1"]
[TimeControl "5400+30"]

1. Nf3 {[%emt 0:04:31]} d5 {[%emt 0:00:24]} 2. c4 {[%emt 0:00:07]} e6 {[%emt 0:00:05]} 3. e3 {[%emt 0:00:04]} Nf6 {[%emt 0:00:05]} 4. Nc3 {[%emt 0:00:06]} c5 {[%emt 0:00:13]} 5. cxd5 {[%emt 0:00:13]} Nxd5 {[%emt 0:01:33]} 6. Be2 {[%emt 0:01:03]} Nc6 {[%emt 0:00:07]} 7. O-O {[%emt 0:00:04]} Be7 {[%emt 0:00:09]} 8. b3 {[%emt 0:01:15]} Bf6 {[%emt 0:02:16]} 9. Bb2 {[%emt 0:01:23]} Nxc3 {[%emt 0:01:11]} 10. Bxc3 {[%emt 0:00:03]} Bxc3 {[%emt 0:00:51]} 11. dxc3 {[%emt 0:00:02]} Qc7 {[%emt 0:00:18]} 12. b4 {[%emt 0:03:17]} O-O {[%emt 0:03:06]} 13. bxc5 {[%emt 0:02:49]} Qa5 {[%emt 0:03:00]} 14. Nd4 {[%emt 0:01:05]} Qxc5 {[%emt 0:00:57]} 15. Rb1 {[%emt 0:11:47]} e5 {[%emt 0:04:56]} 16. Nxc6 {[%emt 0:00:23]} Qxc6 {[%emt 0:00:29]} 17. Qb3 {[%emt 0:00:34]} Rb8 {[%emt 0:04:25]} 18. Qa3 {[%emt 0:07:07]} Be6 {[%emt 0:10:49]} 19. Qxa7 {[%emt 0:05:31]} Bd5 {[%emt 0:03:18]} 20. Qb6 {[%emt 0:06:44]} Bxg2 {[%emt 0:07:08]} 21. Rfd1 {[%emt 0:01:58]} Ra8 {[%emt 0:03:55]} 22. Rd6 {[%emt 0:07:22]} Qxb6 {[%emt 0:01:22]} 23. Rbxb6 {[%emt 0:00:23]} Bc6 {[%emt 0:01:33]} 24. Bb5 {[%emt 0:00:22]} Bf3 {[%emt 0:02:16]} 25. a4 {[%emt 0:00:24]} Rfc8 {[%emt 0:02:20]} 26. c4 {[%emt 0:00:15]} h5 {[%emt 0:02:59]} 27. h4 {[%emt 0:01:14]} Rc7 {[%emt 0:03:24]} 28. Kf1 {[%emt 0:00:34]} Kf8 {[%emt 0:03:16]} 29. Ke1 {[%emt 0:00:37]} Ke7 {[%emt 0:00:44]} 30. Kd2 {[%emt 0:00:47]} Rh8 {[%emt 0:04:26]} 31. Kc3 {[%emt 0:07:41]} Rcc8 {[%emt 0:09:56]} 32. Rd7+ {[%emt 0:01:06]} Kf8 {[%emt 0:00:08]} 33. Kb4 {[%emt 0:06:25]} Rh7 {[%emt 0:06:35]} 34. c5 {[%emt 0:00:40]} g5 {[%emt 0:08:18]} 35. hxg5 {[%emt 0:01:39]} Rg7 {[%emt 0:00:06]} 36. Rh6 {[%emt 0:04:42]} Bg4 {[%emt 0:05:24]} 37. Rxb7 {[%emt 0:00:43]} Rxg5 {[%emt 0:00:54]} 38. Rf6 {[%emt 0:01:17]} Be6 {[%emt 0:00:56]} 39. Bc4 {[%emt 0:01:41]} Rg4 {[%emt 0:01:43]} 40. f4 {[%emt 0:01:04]} Bxc4 {[%emt 0:00:14]} 41. Kxc4 {[%emt 0:00:08]} exf4 {[%emt 0:00:11]} 42. Rbxf7+ {[%emt 0:00:44]} Kg8 {[%emt 0:00:16]} 43. Rxf4 {[%emt 0:00:17]} Rg1 {[%emt 0:02:01]} 44. Rf1 {[%emt 0:01:23]} Rg2 {[%emt 0:00:44]} 45. R7f2 {[%emt 0:00:46]} Rg3 {[%emt 0:00:01]} 46. Rf3 {[%emt 0:00:08]} Rg2 {[%emt 0:00:11]} 47. R1f2 {[%emt 0:00:12]} Rg1 {[%emt 0:00:06]} 48. Rf1 {[%emt 0:06:42]} Rg2 {[%emt 0:00:04]} 49. R3f2 {[%emt 0:01:02]} Rg3 {[%emt 0:01:18]} 50. Rf5 {[%emt 0:01:47]} Ra8 {[%emt 0:01:26]} 51. Rxh5 {[%emt 0:00:49]} Rxa4+ {[%emt 0:00:49]} 52. Kd5 {[%emt 0:00:35]} Kg7 {[%emt 0:01:35]} 53. Re5 {[%emt 0:00:18]} Rg2 {[%emt 0:00:27]} 54. Re7+ {[%emt 0:01:06]} Kg6 {[%emt 0:00:38]} 55. Rf4 {[%emt 0:00:21]} Ra5 {[%emt 0:00:33]} 56. Re6+ {[%emt 0:01:37]} Kg7 {[%emt 0:00:06]} 57. Ree4 {[%emt 0:00:35]} Rg5+ {[%emt 0:00:13]} 58. Kd6 {[%emt 0:00:30]} Raxc5 {[%emt 0:00:14]} 59. Re7+ {[%emt 0:01:11]} Kg6 {[%emt 0:00:13]} 60. Re6+ {[%emt 0:02:20]} Kg7 {[%emt 0:00:11]} 61. Re7+ {[%emt 0:02:00]} Kg6 {[%emt 0:00:05]} 62. e4 {[%emt 0:00:53]} Ra5 {[%emt 0:01:00]} 63. Re6+ {[%emt 0:00:06]} Kg7 {[%emt 0:00:07]} 64. Re7+ {[%emt 0:00:30]} Kg6 {[%emt 0:00:06]} 1/2-1/2

[Event "NY Presidents Day IM-B 2024"]
[Site "New York"]
[Date "2024.02.17"]
[Round "3.4"]
[White "Jimenez Fraga, Pedro Alejandro"]
[Black "Xu, Grant"]
[Result "1-0"]
[ECO "B07"]
[WhiteElo "2447"]
[BlackElo "2313"]
[Annotator "RC"]
[PlyCount "79"]
[EventDate "2024.02.14"]
[EventType "schev"]
[EventCountry "USA"]
[SourceTitle "playchess.com"]
[Source "ChessBase"]
[SourceQuality "1"]
[TimeControl "5400+30"]

1. e4 {[%emt 0:26:40]} d6 {[%emt 0:00:19]} 2. d4 {[%emt 0:00:13]} Nf6 {[%emt 0:00:10]} 3. f3 {[%emt 0:00:04]} c6 {[%emt 0:03:00]} 4. Be3 {[%emt 0:01:20]} e5 {[%emt 0:04:49]} 5. c4 {[%emt 0:01:40]} exd4 {[%emt 0:01:30]} 6. Bxd4 {[%emt 0:04:10]} Be7 {[%emt 0:00:35]} 7. Nc3 {[%emt 0:01:48]} O-O {[%emt 0:04:03]} 8. Nge2 {[%emt 0:01:49]} Re8 {[%emt 0:04:16]} 9. g3 {[%emt 0:07:41]} Na6 {[%emt 0:01:16]} 10. Bg2 {[%emt 0:00:19]} Be6 {[%emt 0:00:57]} 11. b3 {[%emt 0:00:24]} d5 {[%emt 0:00:35]} 12. cxd5 {[%emt 0:01:09]} cxd5 {[%emt 0:00:06]} 13. e5 {[%emt 0:00:05]} Nd7 {[%emt 0:00:26]} 14. O-O {[%emt 0:00:21]} Nb6 {[%emt 0:08:11]} 15. f4 {[%emt 0:07:26]} f6 {[%emt 0:05:58]} 16. Kh1 {[%emt 0:09:37]} fxe5 {[%emt 0:03:44]} 17. fxe5 {[%emt 0:01:34]} Bc5 {[%emt 0:01:02]} 18. Nf4 {[%emt 0:00:52]} Qg5 {[%emt 0:04:36]} 19. Bxc5 {[%emt 0:07:41]} Nxc5 {[%emt 0:00:06]} 20. Qd4 {[%emt 0:00:04]} Rac8 {[%emt 0:05:05]} 21. Rae1 {[%emt 0:01:59]} Kh8 {[%emt 0:01:37]} 22. Nb5 {[%emt 0:01:08]} Bg8 {[%emt 0:30:36]} 23. Nd6 {[%emt 0:04:02]} Ne6 {[%emt 0:01:30]} 24. Nxe6 {[%emt 0:00:28]} Bxe6 {[%emt 0:00:11]} 25. a4 {[%emt 0:01:09]} Rcd8 {[%emt 0:06:08]} 26. a5 {[%emt 0:00:25]} Nc8 {[%emt 0:00:16]} 27. Nxe8 {[%emt 0:00:43]} Rxe8 {[%emt 0:00:03]} 28. Bxd5 {[%emt 0:00:46]} Qd8 {[%emt 0:01:32]} 29. Rd1 {[%emt 0:00:29]} Bh3 {[%emt 0:00:19]} 30. Rf7 {[%emt 0:02:38]} Ne7 {[%emt 0:02:36]} 31. Bg2 {[%emt 0:01:11]} Qxd4 {[%emt 0:01:25]} 32. Rxd4 {[%emt 0:00:03]} Kg8 {[%emt 0:00:28]} 33. Rf2 {[%emt 0:01:52]} Bxg2+ {[%emt 0:01:25]} 34. Kxg2 {[%emt 0:00:10]} Nc6 {[%emt 0:00:01]} 35. Rd7 {[%emt 0:00:13]} Rxe5 {[%emt 0:00:22]} 36. Rxb7 {[%emt 0:01:26]} Rxa5 {[%emt 0:00:22]} 37. Rc7 {[%emt 0:01:08]} Nd8 {[%emt 0:00:22]} 38. Rd7 {[%emt 0:00:15]} Nc6 {[%emt 0:00:23]} 39. Rd6 {[%emt 0:00:14]} Rc5 {[%emt 0:00:10]} 40. b4 {[%emt 0:00:07]} 1-0

[Event "NY Presidents Day IM-B 2024"]
[Site "New York"]
[Date "2024.02.17"]
[Round "3.5"]
[White "Poliannikov, Danila"]
[Black "Bortnyk, Mykola"]
[Result "0-1"]
[ECO "B42"]
[WhiteElo "2282"]
[BlackElo "2421"]
[Annotator "RC"]
[PlyCount "120"]
[EventDate "2024.02.14"]
[EventType "schev"]
[EventCountry "USA"]
[SourceTitle "playchess.com"]
[Source "ChessBase"]
[SourceQuality "1"]
[TimeControl "5400+30"]

1. e4 {[%emt 0:00:02]} c5 {[%emt 0:00:59]} 2. Nf3 {[%emt 0:00:03]} e6 {[%emt 0:00:34]} 3. d4 {[%emt 0:00:03]} cxd4 {[%emt 0:00:06]} 4. Nxd4 {[%emt 0:00:02]} a6 {[%emt 0:00:09]} 5. Bd3 {[%emt 0:00:05]} Bc5 {[%emt 0:00:50]} 6. Nb3 {[%emt 0:00:04]} Ba7 {[%emt 0:00:06]} 7. O-O {[%emt 0:01:14]} Nc6 {[%emt 0:01:04]} 8. c4 {[%emt 0:00:30]} Nge7 {[%emt 0:01:26]} 9. Nc3 {[%emt 0:00:40]} O-O {[%emt 0:00:19]} 10. Qe2 {[%emt 0:02:51]} f5 {[%emt 0:03:54]} 11. exf5 {[%emt 0:02:45]} Nxf5 {[%emt 0:00:28]} 12. Bxf5 {[%emt 0:07:20]} Rxf5 {[%emt 0:01:33]} 13. Ne4 {[%emt 0:00:37]} d5 {[%emt 0:01:59]} 14. Ng3 {[%emt 0:03:01]} Re5 {[%emt 0:00:14]} 15. Qg4 {[%emt 0:02:32]} dxc4 {[%emt 0:06:59]} 16. Qxc4 {[%emt 0:01:33]} Bd7 {[%emt 0:13:42]} 17. Bd2 {[%emt 0:15:01]} Rc8 {[%emt 0:06:12]} 18. Qg4 {[%emt 0:03:50]} Rd5 {[%emt 0:00:32]} 19. Nh5 {[%emt 0:11:56]} g6 {[%emt 0:00:23]} 20. Ng3 {[%emt 0:01:55]} Ne5 {[%emt 0:01:46]} 21. Qh3 {[%emt 0:04:13]} Rc4 {[%emt 0:00:20]} 22. Ne2 {[%emt 0:06:44]} Rd3 {[%emt 0:09:47]} 23. Be3 {[%emt 0:00:35]} Rh4 {[%emt 0:01:23]} 24. Qg3 {[%emt 0:00:41]} Ng4 {[%emt 0:00:56]} 25. Bxa7 {[%emt 0:11:40]} Rxg3 {[%emt 0:00:35]} 26. hxg3 {[%emt 0:00:38]} Bb5 {[%emt 0:23:55]} 27. Rfd1 {[%emt 0:05:21]} Qf6 {[%emt 0:00:07]} 28. Nf4 {[%emt 0:03:23]} g5 {[%emt 0:02:23]} 29. gxh4 {[%emt 0:03:15]} gxf4 {[%emt 0:00:14]} 30. Nd4 {[%emt 0:01:02]} Qxh4 {[%emt 0:02:08]} 31. Nf3 {[%emt 0:00:58]} Qf6 {[%emt 0:01:20]} 32. Rd6 {[%emt 0:02:42]} Bc6 {[%emt 0:00:41]} 33. Re1 {[%emt 0:01:10]} Bxf3 {[%emt 0:02:27]} 34. Rdxe6 {[%emt 0:01:27]} Qg5 {[%emt 0:00:15]} 35. Re8+ {[%emt 0:01:14]} Kf7 {[%emt 0:00:01]} 36. R1e7+ {[%emt 0:00:34]} Qxe7 {[%emt 0:00:18]} 37. Rxe7+ {[%emt 0:00:03]} Kxe7 {[%emt 0:00:05]} 38. gxf3 {[%emt 0:00:02]} Ne5 {[%emt 0:00:27]} 39. Kg2 {[%emt 0:01:50]} Ke6 {[%emt 0:00:06]} 40. Bd4 {[%emt 0:00:36]} Nd3 {[%emt 0:00:30]} 41. Bc3 {[%emt 0:00:55]} b5 {[%emt 0:00:12]} 42. a3 {[%emt 0:01:35]} Kf5 {[%emt 0:01:15]} 43. Kf1 {[%emt 0:00:52]} Nc5 {[%emt 0:01:05]} 44. Kg2 {[%emt 0:00:15]} Nb3 {[%emt 0:00:23]} 45. Kh3 {[%emt 0:00:28]} Kg5 {[%emt 0:00:16]} 46. Kg2 {[%emt 0:00:14]} a5 {[%emt 0:00:04]} 47. Kf1 {[%emt 0:00:48]} a4 {[%emt 0:00:05]} 48. Kg2 {[%emt 0:00:06]} Kf5 {[%emt 0:00:17]} 49. Kh3 {[%emt 0:00:09]} Nc5 {[%emt 0:00:14]} 50. Kg2 {[%emt 0:01:16]} Nd3 {[%emt 0:00:09]} 51. Kf1 {[%emt 0:00:30]} Ke6 {[%emt 0:00:05]} 52. Ke2 {[%emt 0:02:05]} Ne5 {[%emt 0:00:18]} 53. Ba5 {[%emt 0:00:55]} h5 {[%emt 0:00:11]} 54. Bd8 {[%emt 0:00:20]} Kf5 {[%emt 0:00:12]} 55. Be7 {[%emt 0:00:38]} Nc4 {[%emt 0:02:11]} 56. Kd3 {[%emt 0:00:19]} Nxb2+ {[%emt 0:00:03]} 57. Kc3 {[%emt 0:00:35]} Nc4 {[%emt 0:00:06]} 58. Kb4 {[%emt 0:00:09]} Ne5 {[%emt 0:00:53]} 59. Kxb5 {[%emt 0:00:34]} Nxf3 {[%emt 0:00:04]} 60. Kxa4 {[%emt 0:01:14]} Ng5 {[%emt 0:00:05]} 0-1

[Event "NY Presidents Day IM-B 2024"]
[Site "New York"]
[Date "2024.02.17"]
[Round "3.6"]
[White "Lima, Darcy"]
[Black "Wongso, Steve"]
[Result "1/2-1/2"]
[ECO "A20"]
[WhiteElo "2370"]
[BlackElo "2229"]
[Annotator "RC"]
[PlyCount "69"]
[EventDate "2024.02.14"]
[EventType "schev"]
[EventCountry "USA"]
[SourceTitle "playchess.com"]
[Source "ChessBase"]
[SourceQuality "1"]
[TimeControl "5400+30"]

1. c4 {[%emt 0:00:20]} e5 {[%emt 0:00:10]} 2. g3 {[%emt 0:00:08]} Nf6 {[%emt 0:00:12]} 3. Bg2 {[%emt 0:00:07]} c6 {[%emt 0:00:04]} 4. Nf3 {[%emt 0:01:08]} e4 {[%emt 0:00:05]} 5. Nd4 {[%emt 0:00:02]} Qb6 {[%emt 0:00:05]} 6. Nb3 {[%emt 0:00:18]} a5 {[%emt 0:00:05]} 7. d3 {[%emt 0:00:17]} a4 {[%emt 0:00:05]} 8. N3d2 {[%emt 0:00:05]} Bc5 {[%emt 0:00:09]} 9. O-O {[%emt 0:00:13]} e3 {[%emt 0:00:14]} 10. fxe3 {[%emt 0:00:16]} Bxe3+ {[%emt 0:00:06]} 11. Kh1 {[%emt 0:00:03]} O-O {[%emt 0:01:39]} 12. Nc3 {[%emt 0:04:55]} Ng4 {[%emt 0:00:19]} 13. Nde4 {[%emt 0:00:41]} d5 {[%emt 0:02:04]} 14. cxd5 {[%emt 0:00:12]} Bxc1 {[%emt 0:00:08]} 15. Qxc1 {[%emt 0:00:05]} Ne3 {[%emt 0:00:03]} 16. Rf3 {[%emt 0:02:15]} Nxd5 {[%emt 0:00:08]} 17. h3 {[%emt 0:08:12]} Nd7 {[%emt 0:08:33]} 18. g4 {[%emt 0:05:36]} Ne5 {[%emt 0:05:19]} 19. Rg3 {[%emt 0:00:08]} Ng6 {[%emt 0:02:28]} 20. Qd2 {[%emt 0:04:02]} f5 {[%emt 0:11:18]} 21. gxf5 {[%emt 0:00:48]} Bxf5 {[%emt 0:00:06]} 22. Rg1 {[%emt 0:02:57]} Qc7 {[%emt 0:05:20]} 23. Bf3 {[%emt 0:00:12]} Ndf4 {[%emt 0:06:17]} 24. Nf2 {[%emt 0:00:11]} Rad8 {[%emt 0:10:26]} 25. Nce4 {[%emt 0:10:48]} Qe5 {[%emt 0:05:11]} 26. Qc3 {[%emt 0:01:54]} Qe6 {[%emt 0:05:53]} 27. a3 {[%emt 0:03:33]} h5 {[%emt 0:16:35]} 28. h4 {[%emt 0:17:13]} Qe7 {[%emt 0:02:56]} 29. Rg5 {[%emt 0:00:42]} Ne6 {[%emt 0:04:01]} 30. Rxh5 {[%emt 0:04:52]} Nxh4 {[%emt 0:00:31]} 31. Bg4 {[%emt 0:00:47]} Nf4 {[%emt 0:06:02]} 32. Rg5 {[%emt 0:06:35]} Ne6 {[%emt 0:00:23]} 33. Rh5 {[%emt 0:02:26]} Nf4 {[%emt 0:01:03]} 34. Rg5 {[%emt 0:03:44]} Ne6 {[%emt 0:00:03]} 35. Rh5 {[%emt 0:22:15]} 1/2-1/2

[Event "NY Presidents Day IM-B 2024"]
[Site "New York"]
[Date "2024.02.17"]
[Round "4.1"]
[White "Lee, Megan"]
[Black "Tanenbaum, Zachary"]
[Result "0-1"]
[ECO "C63"]
[WhiteElo "2267"]
[BlackElo "2272"]
[Annotator "TA"]
[PlyCount "82"]
[EventDate "2024.02.14"]
[EventType "schev"]
[EventCountry "USA"]
[SourceTitle "playchess.com"]
[Source "ChessBase"]
[SourceQuality "1"]
[TimeControl "5400+30"]

{[%evp 11,82,45,38,38,19,0,18,11,7,6,0,-4,39,0,44,29,29,30,41,39,44,0,58,-43,-16,-158,-177,-207,-189,-283,-279,-277,-271,-288,-304,-416,-416,-477,-398,-747,-735,-819,-846,-1037,-1009,-1027,-1014,-957,-951,-1113,-1088,-1101,-562,-1001,-969,-900,-865,-1089,-693,-5265,-5189,-1228,-762,-1323,-1162,-29993,-29994,-29996,-29997,-29997,-29998,-29998,-29999]} 1. e4 {[%emt 0:00:01]} e5 {[%emt 0:22:26]} 2. Nf3 {[%emt 0:00:06]} Nc6 {[%emt 0:00:05]} 3. Bb5 {[%emt 0:00:04]} f5 {[%emt 0:00:04]} 4. d3 {[%emt 0:00:05]} fxe4 {[%emt 0:00:04]} 5. dxe4 {[%emt 0:00:06]} Nf6 {[%emt 0:00:04]} 6. O-O {[%emt 0:00:08]} d6 {[%emt 0:00:05][%cal Oa7a6]} 7. Qd3 {[%emt 0:03:44]} a6 {[%emt 0:00:14]} 8. Bxc6+ {[%emt 0:04:38]} bxc6 {[%emt 0:00:02]} 9. Qc4 {[%emt 0:04:51] The position is equal.} Bd7 {[%emt 0:01:14]} 10. Nc3 {[%emt 0:01:37]} Qe7 {[%emt 0:01:05]} 11. Qb3 {[%emt 0:06:51]} Bc8 {[%emt 0:09:25]} 12. Rd1 {[%emt 0:05:19]} Qf7 {[%emt 0:02:22]} 13. Qa4 {[%emt 0:05:34]} Bd7 {[%emt 0:00:18]} 14. Qa5 {[%emt 0:07:16]} Bg4 {[%emt 0:05:58]} 15. Rd3 {[%emt 0:02:54]} h6 {[%emt 0:02:07]} 16. b4 {[%emt 0:09:14]} Be6 {[%emt 0:05:49]} ({Black should play} 16... Be7 $11) 17. Nd2 {[%emt 0:07:04]} (17. b5 $1 $14) 17... d5 $15 {[%emt 0:26:26] Threatens to win with ...Bd6.} 18. exd5 {[%emt 0:15:08] White is now going downhill.} (18. Qa4 $1 $11 Bd7 19. Qb3) 18... cxd5 $17 {[%emt 0:00:28]} 19. Nb5 {[%emt 0:00:21] [#]} Bd6 $40 {[%emt 0:04:22][%mdl 128] Black is out for blood.} 20. c4 {[%emt 0:08:39]} (20. Nxd6+ $142 cxd6 21. Qb6) 20... O-O $19 {[%emt 0:02:50]} (20... dxc4 21. Rxd6 (21. Nxd6+ cxd6 22. Rxd6 O-O $17) 21... O-O 22. Rxa6 $16 (22. Qxc7 $2 axb5 23. Qxf7+ Bxf7 $17) (22. Nxc7 Ne8 $11)) 21. Nxd6 {[%emt 0:00:35]} cxd6 {[%emt 0:00:02]} 22. cxd5 {[%emt 0:00:17]} Bxd5 {[%emt 0:06:23]} (22... Nxd5 23. Ne4 Qg6 24. Rxd5 Qxe4 25. Rd1 $19) 23. Bb2 {[%emt 0:01:08]} Rac8 {[%emt 0:04:26]} 24. Bc3 {[%emt 0:07:52]} e4 {[%emt 0:01:29]} 25. Rh3 {[%emt 0:04:15] [#]} (25. Rg3 Nh5 26. Bd4 Nxg3 27. hxg3) 25... e3 $1 {[%emt 0:00:39][%mdl 512] White must now prevent ...Ng4.} 26. Rxe3 {[%emt 0:02:51]} (26. Rf1 exd2) 26... Ng4 $1 {[%emt 0:00:03][%csl LRe3,LRf2]} 27. Rf1 {[%emt 0:00:46] [#]} Bxg2 $1 {[%emt 0:01:36][%mdl 512]} 28. Kxg2 {[%emt 0:02:07]} Nxe3+ {[%emt 0:00:03]} (28... Qb7+ 29. Re4 Rxc3 30. Kg1 $19) 29. fxe3 {[%emt 0:00:01]} Qg6+ {[%emt 0:02:13]} 30. Kh1 {[%emt 0:00:01]} Rxf1+ {[%emt 0:00:31]} 31. Nxf1 {[%emt 0:00:01]} Rxc3 {[%emt 0:01:14][%mdl 4096] Endgame. KQR-KQN} 32. Ng3 {[%emt 0:00:45] Wards off Qe4+} Rc1+ {[%emt 0:00:39]} 33. Kg2 {[%emt 0:00:03]} Rc2+ {[%emt 0:00:11]} 34. Kf3 {[%emt 0:01:25]} Qf7+ {[%emt 0:00:31]} 35. Ke4 {[%emt 0:01:07]} Qe6+ {[%emt 0:01:01]} 36. Kf3 {[%emt 0:00:00]} Rxa2 {[%emt 0:00:20]} 37. Qd8+ {[%emt 0:01:00]} Kh7 {[%emt 0:00:10]} 38. h4 {[%emt 0:00:36]} Qd5+ {[%emt 0:01:33] Black mates.} 39. Kg4 {[%emt 0:00:45] [#]} h5+ $1 {[%emt 0:00:34]} 40. Nxh5 {[%emt 0:00:42]} Qe4+ {[%emt 0:00:11]} 41. Nf4 {[%emt 0:00:29]} Rg2+ {[%emt 0:00:16] Weighted Error Value: White=1.12/Black=0.62.  Mistake:       	White=4     	Black=1      Inaccurate:     	White=3     	Black=2      OK:         	White=4     	Black=8      Best:        	White=1     	Black=1} 0-1